bitfinex-derivatives/quotes_ETHF0:USTF0_20210107
["timestamp","ask_amount","ask_price","bid_price","bid_amount"]
[1610026117196,4.00959,1219.7,1219.3,4.00959]
[1610026120501,4.00959,1219.7,1219.2,53.7267]
[1610026120702,4.00959,1219.7,1217.7,12.3484]
[1610026120904,4.00959,1219.7,1218.1,64.4661]
[1610026121305,4.00959,1219.3,1219.1,4.00959]
[1610026121704,30.0,1220.1,1219.1,4.00959]
[1610026122306,30.0,1220.1,1219.0,49.984]
[1610026123306,30.0,1220.1,1219.1,4.00959]
[1610026124509,30.0,1220.1,1219.0,49.984]
[1610026125208,4.00959,1219.1,1219.0,49.984]
[1610026125410,4.00959,1219.1,1218.9,4.00959]
[1610026127714,4.00959,1219.1,1218.4,57.632]
[1610026128113,34.00959,1219.1,1218.4,57.632]
[1610026129213,4.00959,1218.7,1218.5,4.00959]
[1610026130215,4.00959,1218.7,1218.4,57.632]
[1610026130815,32.2151,1219.8,1218.4,57.632]
[1610026131317,4.00959,1219.1,1218.7,4.00959]
[1610026131517,2.2151,1219.8,1218.7,4.00959]
[1610026131717,30.0,1220.0,1218.7,4.00959]
[1610026131917,30.0,1220.0,1219.2,63.122]
[1610026132319,3.674,1220.2,1219.2,63.122]
[1610026133219,3.674,1220.2,1220.0,4.00959]
[1610026133424,4.00959,1220.1,1220.0,4.00959]
[1610026134621,3.674,1220.2,1220.0,4.00959]
[1610026135323,3.674,1220.2,1220.0,54.78389]
[1610026139336,3.674,1220.2,1220.0,50.7743]
[1610026139737,3.674,1220.2,1218.1,6.0121]
[1610026139937,3.674,1220.2,1219.6,59.7289]
[1610026141038,33.674,1220.2,1219.6,59.7289]
[1610026141239,4.00959,1219.7,1219.6,59.7289]
[1610026141438,4.00959,1219.7,1219.5,4.00959]
[1610026141839,4.00959,1219.7,1219.2,48.2405]
[1610026142240,4.00959,1219.7,1218.0,6.0337]
[1610026142440,4.00959,1219.7,1218.6,47.1531]
[1610026143339,4.00959,1219.7,1219.3,4.00959]
[1610026144839,4.00959,1219.7,1219.3,51.76339]
[1610026145439,4.00959,1219.5,1219.3,4.00959]
[1610026146039,3.674,1220.2,1219.3,58.05909]
[1610026147440,4.00959,1220.1,1219.6,4.00959]
[1610026148742,4.00959,1220.1,1219.9,66.4887]
[1610026149342,4.00959,1220.1,1220.0,4.00959]
[1610026149743,3.674,1220.2,1220.0,4.00959]
[1610026153348,7.68359,1220.2,1220.0,4.00959]
[1610026154649,7.68359,1220.2,1218.1,6.1754]
[1610026154848,7.68359,1220.2,1219.6,62.8074]
[1610026155349,4.00959,1219.9,1219.6,66.81699]
[1610026157853,3.674,1220.2,1219.6,66.81699]
[1610026159353,4.00959,1220.0,1219.6,66.81699]
[1610026160754,34.00959,1220.0,1219.6,66.81699]
[1610026161358,4.00959,1219.7,1219.6,66.81699]
[1610026161754,4.00959,1219.7,1219.6,62.8074]
[1610026162355,3.674,1220.2,1219.6,62.8074]
[1610026163357,4.00959,1219.9,1219.6,62.8074]
[1610026165358,3.674,1220.2,1219.6,62.8074]
[1610026165359,4.00959,1219.7,1219.6,62.8074]
[1610026168361,3.674,1220.2,1219.6,62.8074]
[1610026169565,4.00959,1220.1,1219.8,4.00959]
[1610026171565,4.00959,1219.9,1219.8,4.00959]
[1610026175270,4.00959,1219.9,1219.3,61.791]
[1610026175470,4.00959,1219.4,1219.3,61.791]
[1610026177773,30.0,1220.1,1219.2,4.00959]
[1610026178171,30.0,1220.1,1219.5,51.7825]
[1610026179575,4.00959,1219.6,1219.2,4.00959]
[1610026179775,4.00959,1219.6,1219.4,47.9676]
[1610026179972,4.00959,1219.6,1219.2,4.00959]
[1610026180173,4.00959,1219.6,1219.2,53.15649]
[1610026185476,4.00959,1219.6,1219.5,4.00959]
[1610026185876,4.00959,1219.6,1219.5,72.36729]
[1610026186180,30.0,1220.1,1219.5,72.36729]
[1610026186379,30.0,1220.1,1219.5,4.00959]
[1610026186780,30.0,1220.1,1219.7,63.5744]
[1610026186976,3.674,1220.2,1219.7,63.5744]
[1610026187178,3.674,1220.2,1219.5,4.00959]
[1610026187579,3.674,1220.2,1220.1,4.00959]
[1610026188580,11.051,1221.0,1220.1,62.87179]
[1610026189579,4.00959,1220.9,1220.8,4.00959]
[1610026190781,30.0,1221.3,1220.8,11.70039]
[1610026190985,30.0,1221.3,1220.8,4.00959]
[1610026191181,30.0,1221.3,1220.9,65.3032]
[1610026191381,30.0,1222.3,1220.9,65.3032]
[1610026191580,33.475,1222.3,1221.2,4.00959]
[1610026191789,30.0,1222.3,1221.2,12.75239]
[1610026192185,30.0,1222.3,1221.2,8.7428]
[1610026193587,4.00959,1221.3,1221.2,8.7428]
[1610026195792,34.00959,1221.3,1218.9,11.9479]
[1610026195992,44.39659,1221.3,1220.7,55.2621]
[1610026197696,34.00959,1220.8,1220.3,4.00959]
[1610026198696,4.00959,1220.8,1220.3,4.00959]
[1610026199198,4.00959,1220.8,1220.3,11.15359]
[1610026199599,4.00959,1220.4,1220.3,11.15359]
[1610026200600,30.0,1221.2,1220.3,11.15359]
[1610026200805,30.0,1221.2,1220.3,7.144]
[1610026201701,4.00959,1220.4,1220.3,7.144]
[1610026202302,34.00959,1220.4,1220.3,7.144]
[1610026203404,4.00959,1220.4,1220.3,7.144]
[1610026203606,34.00959,1220.4,1220.3,7.144]
[1610026206509,34.00959,1220.4,1218.0,11.9871]
[1610026206709,37.48459,1220.4,1218.4,55.7639]
[1610026207712,4.00959,1219.4,1219.2,4.00959]
[1610026209414,4.00959,1219.4,1219.3,61.6661]
[1610026209617,4.00959,1219.6,1219.3,61.6661]
[1610026209815,33.475,1220.4,1219.3,61.6661]
[1610026211815,4.00959,1219.5,1219.3,61.6661]
[1610026212514,33.475,1220.4,1219.3,61.6661]
[1610026213817,33.475,1220.4,1219.5,4.00959]
[1610026215721,4.00959,1219.6,1219.5,4.00959]
[1610026216020,4.00959,1219.6,1219.3,61.6661]
[1610026217822,4.00959,1219.4,1219.3,61.6661]
[1610026218222,33.475,1220.4,1219.3,61.6661]
[1610026218621,33.475,1220.4,1219.2,4.00959]
[1610026218822,3.475,1220.4,1219.6,61.7377]
[1610026219023,33.475,1220.4,1219.6,61.7377]
[1610026219723,4.00959,1220.2,1220.0,4.00959]
[1610026219927,4.00959,1220.2,1220.1,7.9565]
[1610026223031,4.00959,1220.2,1218.0,11.9871]
[1610026223229,10.92159,1220.2,1218.5,45.8503]
[1610026223733,4.00959,1219.9,1219.6,4.00959]
[1610026224335,6.912,1220.2,1219.6,4.00959]
[1610026225739,10.92159,1220.2,1220.0,4.00959]
[1610026225938,10.92159,1220.2,1219.5,52.482]
[1610026226440,40.92159,1220.2,1219.5,52.482]
[1610026227441,10.92159,1220.2,1219.5,52.482]
[1610026227842,4.00959,1220.0,1219.8,4.00959]
[1610026229544,34.00959,1220.0,1219.5,52.482]
[1610026229749,34.00959,1220.0,1218.0,11.9871]
[1610026229947,30.0,1220.0,1219.9,4.00959]
[1610026230545,10.92159,1220.2,1219.9,4.00959]
[1610026230945,6.912,1220.2,1219.9,63.81499]
[1610026231946,6.912,1220.2,1220.1,4.00959]
[1610026232244,3.475,1220.4,1220.1,4.00959]
[1610026232844,33.475,1220.4,1220.1,4.00959]
[1610026233846,34.00959,1220.3,1220.1,4.00959]
[1610026234049,34.00959,1220.3,1219.9,59.8054]
[1610026235849,4.00959,1220.0,1219.9,59.8054]
[1610026236251,34.00959,1220.0,1219.7,4.00959]
[1610026237154,4.00959,1220.0,1219.7,4.00959]
[1610026237852,34.00959,1220.0,1219.7,4.00959]
[1610026238051,34.00959,1220.0,1219.5,51.2528]
[1610026239856,4.00959,1219.6,1219.5,51.2528]
[1610026241758,4.00959,1219.6,1219.3,4.00959]
[1610026241958,4.00959,1219.6,1219.5,4.00959]
[1610026244060,30.0,1219.8,1219.5,4.00959]
[1610026244661,30.0,1219.7,1219.5,4.00959]
[1610026245260,30.0,1219.7,1219.2,57.4391]
[1610026245761,30.0,1220.3,1219.2,57.4391]
[1610026245961,4.00959,1219.6,1219.4,4.00959]
[1610026246164,0.00959,1219.6,1219.4,4.00959]
[1610026248965,30.0,1220.3,1219.4,4.00959]
[1610026249567,30.0,1220.3,1219.2,57.4391]
[1610026249966,4.00959,1219.3,1219.2,57.4391]
[1610026253773,4.00959,1219.3,1219.1,4.00959]
[1610026255674,4.00959,1219.3,1218.7,63.012]
[1610026255874,4.00959,1219.1,1218.9,4.00959]
[1610026257276,34.00959,1219.1,1218.9,4.00959]
[1610026257875,34.00959,1219.1,1218.4,4.00959]
[1610026259478,34.00959,1219.1,1217.8,59.884]
[1610026259675,37.48459,1219.1,1217.8,59.884]
[1610026259878,33.475,1219.1,1218.1,4.00959]
[1610026260676,33.475,1219.1,1217.8,59.884]
[1610026261975,33.475,1219.1,1217.9,4.00959]
[1610026263879,4.00959,1218.0,1217.9,4.00959]
[1610026264783,33.475,1219.1,1217.9,4.00959]
[1610026266083,4.00959,1218.0,1217.9,4.00959]
[1610026267084,34.00959,1218.0,1217.9,4.00959]
[1610026267882,34.00959,1218.0,1217.3,51.1545]
[1610026268083,34.00959,1218.0,1217.7,4.00959]
[1610026269984,34.00959,1217.8,1213.5,6.2194]
[1610026270184,34.00959,1217.8,1216.9,59.412]
[1610026270384,34.00959,1217.8,1068.7,0.52828482]
[1610026270584,34.00959,1217.8,1216.1,55.9553]
[1610026270784,34.00959,1217.8,1212.3,10.387]
[1610026270986,4.00959,1217.8,1214.8,50.5224]
[1610026271388,4.00959,1217.8,1214.9,6.2755]
[1610026272086,4.00959,1217.2,1216.9,4.00959]
[1610026272288,4.00959,1217.2,1216.9,54.87999]
[1610026273088,30.0,1218.5,1216.9,54.87999]
[1610026273490,30.0,1218.4,1216.9,54.87999]
[1610026274088,4.00959,1217.3,1216.9,50.8704]
[1610026274489,30.0,1218.5,1216.9,50.8704]
[1610026276090,4.00959,1217.2,1216.9,54.87999]
[1610026276288,4.00959,1217.2,1216.9,4.00959]
[1610026277490,41.47509,1217.2,1216.9,4.00959]
[1610026277691,41.47509,1217.2,1216.1,47.4413]
[1610026278090,4.00959,1216.8,1216.7,4.00959]
[1610026278697,4.00959,1216.8,1216.7,2.00959]
[1610026280495,4.00959,1216.8,1216.1,47.4413]
[1610026281798,7.4655,1217.2,1216.1,47.4413]
[1610026281997,4.00959,1217.1,1216.8,4.00959]
[1610026282697,30.0,1217.0,1063.1,0.55692677]
[1610026282898,30.0,1217.0,1211.6,5.7044]
[1610026283102,91.9549,1217.0,1213.0,53.0673]
[1610026283500,91.9549,1217.0,1213.1,6.1719]
[1610026283702,61.9549,1217.0,1213.1,6.1719]
[1610026283902,4.00959,1217.1,1213.2,6.0557]
[1610026284100,4.00959,1216.5,1216.3,4.00959]
[1610026285302,4.00959,1216.5,1216.3,2.00959]
[1610026285703,1.9509,1217.6,1216.3,2.00959]
[1610026286004,30.0,1217.8,1216.6,4.00959]
[1610026286406,30.0,1217.8,1216.0,52.0477]
[1610026286804,30.0,1217.8,1213.8,11.7874]
[1610026287004,30.0,1217.3,1215.2,51.3237]
[1610026288005,4.00959,1216.4,1216.2,4.00959]
[1610026288605,3.475,1217.3,1216.2,4.00959]
[1610026290010,4.00959,1216.8,1216.5,4.00959]
[1610026290211,3.475,1217.3,1216.5,4.00959]
[1610026292011,4.00959,1216.9,1216.8,4.00959]
[1610026292513,4.00959,1216.9,1216.0,66.7395]
[1610026294012,3.475,1217.3,1216.0,66.7395]
[1610026294322,33.475,1217.3,1216.0,66.7395]
[1610026295312,3.475,1217.3,1216.0,66.7395]
[1610026295713,33.475,1217.3,1216.0,66.7395]
[1610026296115,4.00959,1216.6,1216.1,4.00959]
[1610026297619,4.00959,1216.6,1216.0,66.7395]
[1610026298018,4.00959,1216.6,1216.5,4.00959]
[1610026298820,4.00959,1216.6,1216.0,66.7395]
[1610026299020,3.475,1217.3,1216.0,66.7395]
[1610026300120,4.00959,1216.7,1216.0,66.7395]
[1610026302021,4.00959,1216.3,1216.2,4.00959]
[1610026302321,33.475,1217.3,1216.2,4.00959]
[1610026303524,3.475,1217.3,1216.4,48.5399]
[1610026303724,33.475,1217.3,1216.4,48.5399]
[1610026304124,4.00959,1216.8,1216.6,4.00959]
[1610026306226,4.00959,1216.8,1216.4,48.5399]
[1610026308129,4.00959,1216.8,1216.6,4.00959]
[1610026308829,4.00959,1216.8,1216.4,48.5399]
[1610026310129,4.00959,1216.8,1216.7,4.00959]
[1610026313738,4.00959,1216.8,1216.4,48.5399]
[1610026314234,30.0,1217.2,1216.5,4.00959]
[1610026314736,30.0,1217.2,1216.4,48.5399]
[1610026315135,33.475,1217.3,1214.8,5.8798]
[1610026315336,33.475,1217.3,1215.7,64.8784]
[1610026315536,33.475,1217.3,1214.8,5.8798]
[1610026315736,33.475,1217.3,1215.9,55.5737]
[1610026315936,33.475,1217.3,1214.8,5.8798]
[1610026316136,3.475,1217.3,1215.9,54.1727]
[1610026316340,4.00959,1217.2,1216.9,4.00959]
[1610026316538,4.00959,1217.2,1216.9,64.50459]
[1610026317337,3.475,1217.3,1216.9,64.50459]
[1610026318238,3.475,1217.3,1217.2,4.00959]
[1610026318439,4.00959,1217.9,1217.2,4.00959]
[1610026320341,20.617,1218.2,1217.6,4.00959]
[1610026321541,17.142,1218.2,1217.6,4.00959]
[1610026322242,4.00959,1218.1,1217.9,4.00959]
[1610026326145,34.00959,1218.1,1217.9,4.00959]
[1610026326645,34.00959,1218.1,1216.2,5.9505]
[1610026326846,37.48459,1218.1,1217.0,46.2533]
[1610026327047,34.00959,1218.1,1217.0,46.2533]
[1610026328246,4.00959,1217.5,1217.4,4.00959]
[1610026328646,34.00959,1217.5,1217.0,46.2533]
[1610026330049,30.0,1217.4,1217.0,46.2533]
[1610026330249,30.0,1217.4,1217.1,4.00959]
[1610026330956,30.0,1217.4,1217.0,46.2533]
[1610026331156,30.0,1218.1,1217.0,46.2533]
[1610026332258,4.00959,1217.7,1217.5,4.00959]
[1610026333157,4.00959,1217.7,1217.0,46.2533]
[1610026334061,20.617,1218.2,1215.0,6.1346]
[1610026334258,20.617,1218.2,1218.1,4.00959]
[1610026334459,10.387,1218.2,1218.1,4.00959]
[1610026335258,6.912,1218.2,1218.1,4.00959]
[1610026337762,6.912,1218.2,1217.6,67.8995]
[1610026338363,4.00959,1217.9,1217.7,4.00959]
[1610026338964,4.00959,1217.9,1217.6,67.8995]
[1610026339163,4.00959,1217.9,1215.6,6.2784]
[1610026339365,7.48459,1217.9,1217.1,50.9833]
[1610026340265,4.00959,1217.6,1217.4,4.00959]
[1610026341268,4.00959,1217.6,1216.5,59.8437]
[1610026342267,4.00959,1217.4,1217.3,4.00959]
[1610026342666,4.00959,1217.4,1216.4,50.035]
[1610026344278,4.00959,1217.4,1217.3,4.00959]
[1610026344677,3.475,1217.9,1217.0,66.871]
[1610026346275,4.00959,1217.8,1217.7,4.00959]
[1610026346871,4.00959,1217.8,1217.0,66.871]
[1610026348375,4.00959,1217.8,1217.7,4.00959]
[1610026350078,4.00959,1217.8,1217.0,66.871]
[1610026350278,4.00959,1217.8,1217.4,4.00959]
[1610026350478,4.00959,1217.8,1217.0,66.871]
[1610026352279,4.00959,1217.8,1217.3,4.00959]
[1610026354382,4.00959,1217.6,1217.3,4.00959]
[1610026355782,4.00959,1217.6,1217.0,66.871]
[1610026356485,4.00959,1217.6,1217.5,4.00959]
[1610026361292,4.00959,1217.6,1215.6,6.2784]
[1610026361492,4.00959,1217.6,1216.6,61.5445]
[1610026362494,33.475,1217.9,1217.4,4.00959]
[1610026363093,33.475,1217.9,1217.0,51.2572]
[1610026364396,4.00959,1217.1,1217.0,55.26679]
[1610026364598,4.00959,1217.1,1217.0,4.00959]
[1610026364997,4.00959,1217.1,1216.0,68.0131]
[1610026365796,33.475,1217.9,1216.0,68.0131]
[1610026365995,3.475,1217.9,1216.0,68.0131]
[1610026366196,33.475,1217.9,1216.0,68.0131]
[1610026366396,4.00959,1217.5,1217.4,4.00959]
[1610026366996,33.475,1217.9,1217.4,4.00959]
[1610026367201,3.475,1217.9,1217.4,4.00959]
[1610026367401,33.475,1217.9,1217.4,4.00959]
[1610026368501,4.00959,1217.7,1217.4,4.00959]
[1610026369199,4.00959,1217.7,1217.0,47.3585]
[1610026369599,34.00959,1217.7,1217.0,47.3585]
[1610026370399,4.00959,1217.2,1217.1,4.00959]
[1610026371200,4.00959,1217.2,1217.0,47.3585]
[1610026372205,30.0,1217.8,1217.0,47.3585]
[1610026372406,4.00959,1217.7,1217.6,4.00959]
[1610026374208,3.475,1217.9,1217.6,4.00959]
[1610026374407,7.48459,1217.9,1217.5,67.2178]
[1610026375307,3.475,1217.9,1217.5,67.2178]
[1610026376508,3.475,1217.9,1217.8,4.00959]
[1610026377808,6.912,1218.2,1217.8,4.00959]
[1610026378407,6.912,1218.2,1218.0,4.00959]
[1610026379907,36.912,1218.2,1218.0,4.00959]
[1610026380409,4.00959,1218.1,1218.0,4.00959]
[1610026382608,34.00959,1218.1,1218.0,4.00959]
[1610026382809,34.00959,1218.1,1216.5,6.0199]
[1610026383009,37.48459,1218.1,1216.5,55.7437]
[1610026384408,4.00959,1217.6,1217.4,4.00959]
[1610026384609,4.00959,1217.6,1215.5,5.9757]
[1610026384809,4.00959,1217.6,1216.2,51.3787]
[1610026386110,30.0,1217.5,1216.2,51.3787]
[1610026386414,30.0,1217.5,1217.2,4.00959]
[1610026387112,30.0,1217.5,1216.2,51.3787]
[1610026388415,4.00959,1217.2,1216.9,4.00959]
[1610026390516,4.00959,1217.0,1216.9,4.00959]
[1610026391016,30.0,1217.4,1216.9,4.00959]
[1610026391217,30.0,1217.4,1216.9,12.15609]
[1610026391818,30.0,1218.0,1216.9,12.15609]
[1610026392618,4.00959,1217.2,1216.9,12.15609]
[1610026393018,30.0,1218.0,1216.9,12.15609]
[1610026394520,30.0,1218.0,1217.1,4.00959]
[1610026396522,4.00959,1217.2,1217.1,4.00959]
[1610026396724,30.0,1217.9,1217.2,46.3469]
[1610026396922,10.387,1218.1,1217.2,46.3469]
[1610026398522,14.39659,1218.1,1217.8,4.00959]
[1610026398724,4.00959,1218.1,1217.8,4.00959]
[1610026399824,4.00959,1218.1,1217.2,46.3469]
[1610026400627,4.00959,1217.7,1217.5,4.00959]
[1610026402528,4.00959,1217.7,1217.3,4.00959]
[1610026403729,34.00959,1217.7,1217.3,4.00959]
[1610026404531,4.00959,1217.4,1217.3,4.00959]
[1610026404930,4.00959,1217.4,1217.0,52.9963]
[1610026406533,4.00959,1217.7,1217.3,4.00959]
[1610026406733,4.00959,1217.7,1216.2,12.3892]
[1610026406932,7.48459,1217.7,1217.1,56.2569]
[1610026408038,3.475,1217.7,1217.1,56.2569]
[1610026408237,3.475,1217.7,1216.2,6.2326]
[1610026408437,3.475,1217.7,1217.0,48.8899]
[1610026408638,3.475,1217.7,1217.6,4.00959]
[1610026411139,43.705,1218.5,1217.6,4.00959]
[1610026411540,43.705,1218.5,1218.0,47.9827]
[1610026411739,43.705,1218.5,1218.1,62.7777]
[1610026411939,13.705,1218.5,1218.1,62.7777]
[1610026412342,30.0,1218.4,1217.6,4.00959]
[1610026412539,30.0,1218.4,1217.8,58.8933]
[1610026414742,34.00959,1217.9,1216.3,6.1204]
[1610026414942,40.92159,1217.9,1217.3,67.7754]
[1610026416544,10.92159,1217.9,1217.3,67.7754]
[1610026416744,10.92159,1217.9,1217.7,4.00959]
[1610026417144,10.92159,1217.9,1217.3,67.7754]
[1610026417543,40.92159,1217.9,1217.3,67.7754]
[1610026418548,10.92159,1217.9,1217.3,67.7754]
[1610026418746,40.92159,1217.9,1217.7,4.00959]
[1610026418945,40.92159,1217.9,1217.3,67.7754]
[1610026420247,10.92159,1217.9,1217.3,67.7754]
[1610026420446,40.92159,1217.9,1217.3,67.7754]
[1610026420646,4.00959,1217.6,1217.4,4.00959]
[1610026421147,34.00959,1217.6,1217.4,4.00959]
[1610026421347,34.00959,1217.6,1217.3,67.7754]
[1610026422148,34.00959,1217.6,1216.2,6.2326]
[1610026422347,37.48459,1217.6,1216.1,65.7715]
[1610026422748,33.475,1217.6,1216.8,4.00959]
[1610026423550,33.475,1217.6,1216.8,61.32129]
[1610026424649,4.00959,1216.9,1216.8,4.00959]
[1610026424850,4.00959,1216.9,1216.0,67.155]
[1610026425049,30.0,1216.8,1215.4,60.3324]
[1610026426652,30.0,1216.8,1216.2,4.00959]
[1610026427253,30.0,1217.4,1216.2,4.00959]
[1610026428254,30.0,1217.3,1216.2,4.00959]
[1610026428654,4.00959,1216.3,1216.2,4.00959]
[1610026430960,34.00959,1216.3,1211.6,10.387]
[1610026431157,34.00959,1216.3,1214.7,64.3515]
[1610026432759,4.00959,1215.7,1215.4,4.00959]
[1610026433361,30.0,1216.3,1215.4,4.00959]
[1610026433559,30.0,1216.3,1215.5,58.9942]
[1610026434061,30.0,1216.3,1214.7,67.9077]
[1610026434460,30.0,1216.3,1213.7,5.8933]
[1610026434662,84.968,1216.3,1213.7,5.8933]
[1610026434861,84.968,1216.3,1215.1,4.00959]
[1610026435160,30.0,1216.3,1215.1,4.00959]
[1610026435360,30.0,1216.2,1215.1,4.00959]
[1610026436165,30.0,1216.4,1215.1,4.00959]
[1610026436366,30.0,1216.1,1215.1,4.00959]
[1610026436768,4.00959,1215.3,1215.1,4.00959]
[1610026437468,30.0,1216.4,1215.1,4.00959]
[1610026437667,30.0,1216.4,1215.2,7.9824]
[1610026437866,30.0,1216.4,1215.1,4.00959]
[1610026438067,30.0,1216.4,1215.2,67.3358]
[1610026438266,30.0,1216.8,1215.2,67.3358]
[1610026438468,33.475,1216.8,1215.1,4.00959]
[1610026438866,4.00959,1215.8,1215.5,4.00959]
[1610026440768,4.00959,1215.8,1215.7,4.00959]
[1610026441169,4.00959,1215.8,1215.0,49.1336]
[1610026442770,33.475,1216.8,1215.5,4.00959]
[1610026443771,33.475,1216.8,1215.3,48.7512]
[1610026444872,4.00959,1215.4,1215.3,52.76079]
[1610026445072,4.00959,1215.4,1213.7,5.8933]
[1610026445271,4.00959,1215.4,1214.3,47.5364]
[1610026446974,30.0,1216.5,1215.1,4.00959]
[1610026447375,30.0,1216.4,1215.1,4.00959]
[1610026448276,30.0,1216.3,1215.1,4.00959]
[1610026448979,4.00959,1215.2,1215.1,4.00959]
[1610026452580,4.00959,1215.2,1214.7,57.5988]
[1610026452980,83.8696,1216.2,1214.9,4.00959]
[1610026453378,83.8696,1216.2,1214.7,57.5988]
[1610026454984,83.8696,1216.2,1214.9,4.00959]
[1610026457087,4.00959,1215.0,1214.9,4.00959]
[1610026457285,83.8696,1216.2,1214.9,4.00959]
[1610026458186,83.8696,1216.2,1214.7,57.5988]
[1610026459087,83.8696,1216.2,1214.8,4.00959]
[1610026461091,4.00959,1214.9,1214.8,4.00959]
[1610026464291,3.475,1215.8,1214.8,4.00959]
[1610026464892,3.475,1215.8,1214.9,57.5798]
[1610026465295,4.00959,1215.5,1215.3,4.00959]
[1610026465994,4.00959,1215.5,1214.8,67.138]
[1610026466195,4.00959,1215.5,1214.4,49.3444]
[1610026466395,4.00959,1215.5,1213.7,5.8933]
[1610026466598,7.48459,1215.5,1213.8,52.8747]
[1610026467196,7.48459,1215.5,1215.3,4.00959]
[1610026467396,4.00959,1215.5,1215.3,4.00959]
[1610026468898,33.475,1216.8,1215.3,4.00959]
[1610026469099,33.475,1216.8,1215.5,58.2923]
[1610026469301,4.00959,1215.8,1215.7,4.00959]
[1610026472204,4.00959,1215.8,1215.3,51.1173]
[1610026472405,4.00959,1215.8,1213.7,5.8933]
[1610026472606,14.39659,1215.8,1214.8,66.2294]
[1610026472805,10.92159,1215.8,1214.8,66.2294]
[1610026473306,4.00959,1215.3,1215.2,4.00959]
[1610026476114,6.912,1215.8,1215.2,57.36249]
[1610026476315,6.912,1215.8,1215.2,4.00959]
[1610026476516,6.912,1215.8,1215.7,57.5905]
[1610026476716,3.475,1216.5,1215.7,57.5905]
[1610026477319,7.48459,1216.5,1216.4,4.00959]
[1610026477515,7.48459,1216.5,1215.7,57.5905]
[1610026478917,7.48459,1216.5,1213.7,5.8933]
[1610026479116,7.48459,1216.5,1215.5,58.4029]
[1610026479315,4.00959,1216.2,1216.1,4.00959]
[1610026481918,4.00959,1216.2,1214.5,12.0702]
[1610026482119,4.00959,1216.2,1214.5,78.784]
[1610026482318,4.00959,1216.2,1214.5,72.8701]
[1610026483319,3.475,1216.5,1215.4,4.00959]
[1610026485421,4.00959,1215.5,1215.4,4.00959]
[1610026487426,4.00959,1215.7,1215.4,4.00959]
[1610026489328,4.00959,1215.7,1215.6,4.00959]
[1610026489529,4.00959,1215.7,1215.0,51.2884]
[1610026491333,33.475,1216.5,1215.3,4.00959]
[1610026491532,33.475,1216.5,1215.3,10.75779]
[1610026491832,33.475,1216.5,1215.3,4.00959]
[1610026492033,33.475,1216.5,1215.3,58.20229]
[1610026492432,33.475,1216.5,1215.3,4.00959]
[1610026492633,33.475,1216.5,1214.9,67.5998]
[1610026493332,33.475,1216.5,1215.2,4.00959]
[1610026495434,4.00959,1215.3,1215.2,4.00959]
[1610026496034,33.475,1216.5,1215.2,4.00959]
[1610026496237,33.475,1216.5,1215.3,8.3645]
[1610026496436,3.475,1216.5,1215.2,4.00959]
[1610026496637,3.475,1216.5,1215.4,67.8309]
[1610026497436,4.00959,1216.2,1215.9,4.00959]
[1610026498738,4.00959,1216.2,1215.9,11.11869]
[1610026499239,3.475,1216.5,1215.9,11.11869]
[1610026499439,4.00959,1216.4,1216.2,4.00959]
[1610026502040,4.00959,1216.4,1216.0,63.0503]
[1610026503441,4.00959,1216.1,1216.0,67.05989]
[1610026503742,4.00959,1216.1,1216.0,4.00959]
[1610026504644,4.00959,1216.1,1215.8,60.4772]
[1610026505046,3.475,1216.5,1215.8,60.4772]
[1610026505445,3.475,1216.5,1216.0,4.00959]
[1610026507446,3.475,1216.5,1215.8,60.4772]
[1610026509048,33.475,1216.5,1215.8,60.4772]
[1610026509450,4.00959,1215.9,1215.8,60.4772]
[1610026513751,3.475,1216.5,1215.8,60.4772]
[1610026515451,4.00959,1216.0,1215.9,4.00959]
[1610026515751,3.475,1216.5,1215.9,4.00959]
[1610026517554,4.00959,1216.1,1215.9,4.00959]
[1610026522962,4.00959,1216.1,1215.8,60.4772]
[1610026523660,4.00959,1215.9,1215.8,60.4772]
[1610026525265,4.00959,1215.9,1215.7,4.00959]
[1610026526462,34.00959,1215.9,1214.4,5.8191]
[1610026526662,34.00959,1215.9,1215.0,56.7045]
[1610026527463,4.00959,1215.9,1215.0,56.7045]
[1610026527663,4.00959,1215.1,1215.0,56.7045]
[1610026528363,30.0,1216.0,1215.0,56.7045]
[1610026528763,30.0,1216.0,1214.8,4.00959]
[1610026528962,30.0,1216.4,1215.0,48.9323]
[1610026529664,30.0,1216.4,1215.4,4.00959]
[1610026530265,30.0,1216.4,1215.5,67.4833]
[1610026531271,3.475,1216.5,1215.5,67.4833]
[1610026531670,4.00959,1215.7,1215.5,67.4833]
[1610026532072,4.00959,1215.7,1215.4,4.00959]
[1610026535376,4.00959,1215.7,1215.2,65.865]
[1610026535676,33.475,1216.5,1215.4,4.00959]
[1610026535976,33.475,1216.5,1215.2,65.865]
[1610026537680,4.00959,1215.4,1215.2,69.87459]
[1610026540883,33.475,1216.5,1215.2,69.87459]
[1610026541784,4.00959,1215.6,1215.4,4.00959]